[Event "Early-Titled-Tuesday-Blitz-August-29-2023"]
[Site "Chess.com"]
[Date "2023.08.29"]
[Round "8"]
[White "zabivol_mc"]
[Black "kacprekt"]
[Result "1-0"]
[WhiteElo "2602"]
[BlackElo "2437"]
[TimeControl "180+1"]
[EndTime "9:27:35 PDT"]
[Termination "zabivol_mc won on time"]

1. e4 {[%clk 0:02:58.3]} 1... c5 {[%clk 0:02:59.9]} 2. Nf3 {[%clk 0:02:57.9]}
2... Nc6 {[%clk 0:03:00.5]} 3. Bb5 {[%clk 0:02:57.5]} 3... Nf6 {[%clk
0:02:59.5]} 4. e5 {[%clk 0:02:48.1]} 4... Nd5 {[%clk 0:02:58.7]} 5. O-O {[%clk
0:02:42.1]} 5... g6 {[%clk 0:02:57.9]} 6. c3 {[%clk 0:02:38.3]} 6... Bg7 {[%clk
0:02:55.7]} 7. d4 {[%clk 0:02:38.1]} 7... cxd4 {[%clk 0:02:55.3]} 8. cxd4 {[%clk
0:02:39]} 8... O-O {[%clk 0:02:55.2]} 9. Nc3 {[%clk 0:02:32.7]} 9... Nc7 {[%clk
0:02:55.3]} 10. Ba4 {[%clk 0:02:24.2]} 10... d6 {[%clk 0:02:52.4]} 11. exd6
{[%clk 0:01:58.6]} 11... Qxd6 {[%clk 0:02:50.1]} 12. d5 {[%clk 0:01:52.8]} 12...
Ne5 {[%clk 0:02:43.1]} 13. Bf4 {[%clk 0:01:48.7]} 13... Bg4 {[%clk 0:02:37.6]}
14. Bxe5 {[%clk 0:01:45.1]} 14... Bxe5 {[%clk 0:02:37]} 15. h3 {[%clk
0:01:43.5]} 15... Bxf3 {[%clk 0:02:28.4]} 16. Qxf3 {[%clk 0:01:44.4]} 16... Bxc3
{[%clk 0:02:28.7]} 17. Qxc3 {[%clk 0:01:43]} 17... Nxd5 {[%clk 0:02:28.1]} 18.
Qf3 {[%clk 0:01:42.8]} 18... e6 {[%clk 0:02:21]} 19. Bb3 {[%clk 0:01:40.5]}
19... Qe5 {[%clk 0:02:10.7]} 20. Rab1 {[%clk 0:01:27.7]} 20... b6 {[%clk
0:01:53.9]} 21. Rfe1 {[%clk 0:01:25.9]} 21... Qg5 {[%clk 0:01:46.7]} 22. Rbd1
{[%clk 0:01:18.1]} 22... Nf6 {[%clk 0:01:38.8]} 23. Rd4 {[%clk 0:01:03.8]} 23...
Rad8 {[%clk 0:01:33.4]} 24. Rf4 {[%clk 0:01:01.6]} 24... Nd5 {[%clk 0:01:30.2]}
25. Ra4 {[%clk 0:00:55.3]} 25... a5 {[%clk 0:01:21.4]} 26. Rg4 {[%clk
0:00:54.6]} 26... Qd2 {[%clk 0:01:17.2]} 27. Re2 {[%clk 0:00:50]} 27... Qc1+
{[%clk 0:01:15.5]} 28. Kh2 {[%clk 0:00:50.5]} 28... Qc7+ {[%clk 0:01:14.5]} 29.
Kh1 {[%clk 0:00:48.4]} 29... b5 {[%clk 0:00:56]} 30. a4 {[%clk 0:00:43.7]} 30...
bxa4 {[%clk 0:00:51.7]} 31. Bxa4 {[%clk 0:00:44.3]} 31... Nb6 {[%clk 0:00:47.2]}
32. Bb3 {[%clk 0:00:43.7]} 32... a4 {[%clk 0:00:47.6]} 33. Bc2 {[%clk
0:00:33.9]} 33... Rd5 {[%clk 0:00:36.6]} 34. g3 {[%clk 0:00:33.7]} 34... Rfd8
{[%clk 0:00:34.4]} 35. Bxa4 {[%clk 0:00:31.3]} 35... Nxa4 {[%clk 0:00:33.6]} 36.
Rxa4 {[%clk 0:00:32.2]} 36... Qc6 {[%clk 0:00:31.6]} 37. Rf4 {[%clk 0:00:28.5]}
37... Rd1+ {[%clk 0:00:24.3]} 38. Kh2 {[%clk 0:00:28.7]} 38... Qxf3 {[%clk
0:00:22.5]} 39. Rxf3 {[%clk 0:00:29.6]} 39... Rb1 {[%clk 0:00:21.4]} 40. Rc2
{[%clk 0:00:29]} 40... Rdd1 {[%clk 0:00:20.6]} 41. g4 {[%clk 0:00:27.9]} 41...
h5 {[%clk 0:00:19.9]} 42. gxh5 {[%clk 0:00:27.7]} 42... Rh1+ {[%clk 0:00:19.2]}
43. Kg3 {[%clk 0:00:27.7]} 43... Rbg1+ {[%clk 0:00:20.1]} 44. Kf4 {[%clk
0:00:27.2]} 44... g5+ {[%clk 0:00:18.3]} 45. Ke5 {[%clk 0:00:27.4]} 45... Kg7
{[%clk 0:00:18]} 46. Rc7 {[%clk 0:00:26.5]} 46... Re1+ {[%clk 0:00:17.3]} 47.
Kd6 {[%clk 0:00:26.8]} 47... Rd1+ {[%clk 0:00:17.8]} 48. Ke7 {[%clk 0:00:27.2]}
48... f5 {[%clk 0:00:16.4]} 49. Kxe6+ {[%clk 0:00:26.5]} 49... Kh6 {[%clk
0:00:15.4]} 50. Rxf5 {[%clk 0:00:26]} 50... Rhe1+ {[%clk 0:00:14.5]} 51. Kf7
{[%clk 0:00:25.2]} 51... Kxh5 {[%clk 0:00:08.3]} 52. f4 {[%clk 0:00:17.3]} 52...
Kh4 {[%clk 0:00:07.1]} 53. fxg5 {[%clk 0:00:16.6]} 53... Kxh3 {[%clk 0:00:04.1]}
54. g6 {[%clk 0:00:17]} 1-0

[Event "Early-Titled-Tuesday-Blitz-August-29-2023"]
[Site "Chess.com"]
[Date "2023.08.29"]
[Round "8"]
[White "Zhigalko_Sergei"]
[Black "Oleksandr_Bortnyk"]
[Result "0-1"]
[WhiteElo "2936"]
[BlackElo "3047"]
[TimeControl "180+1"]
[EndTime "9:27:38 PDT"]
[Termination "Oleksandr_Bortnyk won on time"]

1. e4 {[%clk 0:03:00.9]} 1... Nf6 {[%clk 0:02:44.4]} 2. e5 {[%clk 0:03:01.2]}
2... Nd5 {[%clk 0:02:44.8]} 3. d4 {[%clk 0:03:02.1]} 3... d6 {[%clk 0:02:45.3]}
4. Nf3 {[%clk 0:03:02.7]} 4... dxe5 {[%clk 0:02:45.7]} 5. Nxe5 {[%clk
0:03:03.6]} 5... c6 {[%clk 0:02:46.2]} 6. Be2 {[%clk 0:03:03.7]} 6... Bf5 {[%clk
0:02:46]} 7. O-O {[%clk 0:03:03.5]} 7... Nd7 {[%clk 0:02:46.4]} 8. Nf3 {[%clk
0:03:02.8]} 8... e6 {[%clk 0:02:47]} 9. c4 {[%clk 0:03:03.2]} 9... N5f6 {[%clk
0:02:47]} 10. Bf4 {[%clk 0:03:03.6]} 10... Be7 {[%clk 0:02:46.9]} 11. Nc3 {[%clk
0:03:03.9]} 11... O-O {[%clk 0:02:47.1]} 12. Nh4 {[%clk 0:03:04.1]} 12... Bg6
{[%clk 0:02:46.8]} 13. Nxg6 {[%clk 0:03:03.6]} 13... hxg6 {[%clk 0:02:47.7]} 14.
Re1 {[%clk 0:03:01.4]} 14... Qb6 {[%clk 0:02:40.4]} 15. Qd2 {[%clk 0:02:36.8]}
15... a5 {[%clk 0:02:23.5]} 16. a3 {[%clk 0:02:29.6]} 16... a4 {[%clk
0:02:10.4]} 17. Rad1 {[%clk 0:02:21.7]} 17... Rfd8 {[%clk 0:02:00.2]} 18. Qc1
{[%clk 0:02:12.3]} 18... Qa5 {[%clk 0:01:51.1]} 19. h3 {[%clk 0:02:07.9]} 19...
Rac8 {[%clk 0:01:32.3]} 20. Qe3 {[%clk 0:01:48.8]} 20... b5 {[%clk 0:01:22.2]}
21. c5 {[%clk 0:01:24.4]} 21... b4 {[%clk 0:00:41.5]} 22. axb4 {[%clk
0:01:24.3]} 22... Qxb4 {[%clk 0:00:42.4]} 23. Ra1 {[%clk 0:01:24.2]} 23... Ra8
{[%clk 0:00:34.4]} 24. Bf3 {[%clk 0:01:07.5]} 24... Ra6 {[%clk 0:00:33.5]} 25.
Ra2 {[%clk 0:00:51.9]} 25... e5 {[%clk 0:00:28.7]} 26. dxe5 {[%clk 0:00:38.8]}
26... Bxc5 {[%clk 0:00:28.9]} 27. Qc1 {[%clk 0:00:39.1]} 27... Nd5 {[%clk
0:00:19.7]} 28. Nxd5 {[%clk 0:00:23.8]} 28... cxd5 {[%clk 0:00:20.6]} 29. Bxd5
{[%clk 0:00:24.6]} 29... Qd4 {[%clk 0:00:19.7]} 30. Bc4 {[%clk 0:00:03.8]} 30...
Rc6 {[%clk 0:00:19.2]} 31. e6 {[%clk 0:00:04.2]} 31... Bb4 {[%clk 0:00:10]} 32.
exf7+ {[%clk 0:00:03.9]} 32... Kh7 {[%clk 0:00:09.9]} 33. Rd1 {[%clk 0:00:02.5]}
33... Qxc4 {[%clk 0:00:09.1]} 34. Qxc4 {[%clk 0:00:03]} 34... Rxc4 {[%clk
0:00:10]} 35. Rxa4 {[%clk 0:00:03.5]} 35... Rxf4 {[%clk 0:00:09.5]} 36. g3
{[%clk 0:00:02.2]} 36... Rxf7 {[%clk 0:00:05.1]} 37. Rxb4 {[%clk 0:00:02.8]}
37... Re8 {[%clk 0:00:04.4]} 38. Rb7 {[%clk 0:00:02.1]} 38... Ree7 {[%clk
0:00:04.5]} 39. Rd4 {[%clk 0:00:01.6]} 39... g5 {[%clk 0:00:03.2]} 40. Rg4
{[%clk 0:00:01.8]} 40... Kh6 {[%clk 0:00:03.3]} 41. Rb5 {[%clk 0:00:02.2]} 41...
Ne5 {[%clk 0:00:03.6]} 42. Ra4 {[%clk 0:00:02.2]} 42... Nf3+ {[%clk 0:00:03.7]}
43. Kg2 {[%clk 0:00:02.2]} 43... Re1 {[%clk 0:00:04]} 44. h4 {[%clk 0:00:01.9]}
44... Rg1+ {[%clk 0:00:03.3]} 45. Kh3 {[%clk 0:00:02.4]} 45... gxh4 {[%clk
0:00:04.2]} 46. Ra6+ {[%clk 0:00:02.1]} 46... g6 {[%clk 0:00:03.8]} 47. gxh4
{[%clk 0:00:02.4]} 47... Nd2 {[%clk 0:00:02.8]} 48. h5 {[%clk 0:00:01.2]} 48...
Nf1 {[%clk 0:00:01.9]} 0-1

[Event "Early-Titled-Tuesday-Blitz-August-29-2023"]
[Site "Chess.com"]
[Date "2023.08.29"]
[Round "8"]
[White "Tomytoteph"]
[Black "aghasiyevkamal"]
[Result "1-0"]
[WhiteElo "2632"]
[BlackElo "2500"]
[TimeControl "180+1"]
[EndTime "9:27:38 PDT"]
[Termination "Tomytoteph won on time"]

1. e4 {[%clk 0:03:00.9]} 1... e5 {[%clk 0:02:59.6]} 2. Nf3 {[%clk 0:03:00.9]}
2... Nc6 {[%clk 0:02:59.6]} 3. Bb5 {[%clk 0:03:00.7]} 3... a6 {[%clk 0:02:59.1]}
4. Ba4 {[%clk 0:03:00.9]} 4... Nf6 {[%clk 0:02:54.8]} 5. O-O {[%clk 0:03:00.4]}
5... b5 {[%clk 0:02:54.2]} 6. Bb3 {[%clk 0:03:00.3]} 6... Bc5 {[%clk 0:02:54.4]}
7. h3 {[%clk 0:02:58.9]} 7... d6 {[%clk 0:02:49.1]} 8. c3 {[%clk 0:02:55.9]}
8... h6 {[%clk 0:02:41.8]} 9. d4 {[%clk 0:02:55.8]} 9... Bb6 {[%clk 0:02:41.6]}
10. a4 {[%clk 0:02:52.6]} 10... Rb8 {[%clk 0:02:32.5]} 11. Na3 {[%clk
0:02:50.4]} 11... O-O {[%clk 0:02:06.2]} 12. axb5 {[%clk 0:02:48.5]} 12... axb5
{[%clk 0:02:05.8]} 13. Nxb5 {[%clk 0:02:49]} 13... Bxd4 {[%clk 0:01:33.7]} 14.
cxd4 {[%clk 0:02:39.8]} 14... Rxb5 {[%clk 0:01:33.3]} 15. Ba4 {[%clk 0:02:38.5]}
15... Rb6 {[%clk 0:01:32.2]} 16. dxe5 {[%clk 0:02:34.8]} 16... Nxe5 {[%clk
0:01:31.5]} 17. Bc2 {[%clk 0:02:15.5]} 17... Nxf3+ {[%clk 0:01:22.5]} 18. Qxf3
{[%clk 0:02:15.1]} 18... Bb7 {[%clk 0:01:22.9]} 19. Re1 {[%clk 0:02:11.9]} 19...
Re8 {[%clk 0:01:18.9]} 20. b3 {[%clk 0:01:59.7]} 20... Rc6 {[%clk 0:00:51.8]}
21. Qd3 {[%clk 0:01:54.9]} 21... Rc5 {[%clk 0:00:46.4]} 22. f3 {[%clk
0:01:49.7]} 22... Nh5 {[%clk 0:00:35.7]} 23. Bb2 {[%clk 0:01:38.5]} 23... Nf4
{[%clk 0:00:34.1]} 24. Qd2 {[%clk 0:01:38.6]} 24... Qg5 {[%clk 0:00:33.6]} 25.
Kh1 {[%clk 0:01:38.8]} 25... Qxg2+ {[%clk 0:00:26.6]} 26. Qxg2 {[%clk 0:00:58]}
26... Nxg2 {[%clk 0:00:26.8]} 27. Re2 {[%clk 0:00:58.1]} 27... Nf4 {[%clk
0:00:26.2]} 28. Rd2 {[%clk 0:00:58.7]} 28... Rh5 {[%clk 0:00:24.9]} 29. Ra7
{[%clk 0:00:52.1]} 29... Rxh3+ {[%clk 0:00:25]} 30. Kg1 {[%clk 0:00:52.4]} 30...
Rb8 {[%clk 0:00:21.8]} 31. Kf2 {[%clk 0:00:50.1]} 31... Ne6 {[%clk 0:00:17.5]}
32. Ke3 {[%clk 0:00:47.6]} 32... Ng5 {[%clk 0:00:16.7]} 33. Rf2 {[%clk
0:00:43.2]} 33... d5 {[%clk 0:00:17]} 34. Be5 {[%clk 0:00:39.3]} 34... dxe4
{[%clk 0:00:08.7]} 35. Bxc7 {[%clk 0:00:39.2]} 35... Re8 {[%clk 0:00:09.3]} 36.
Rxb7 {[%clk 0:00:37]} 36... exf3+ {[%clk 0:00:09.7]} 37. Kd4 {[%clk 0:00:34.6]}
37... Ne6+ {[%clk 0:00:09.7]} 38. Kd5 {[%clk 0:00:31.1]} 38... Rh5+ {[%clk
0:00:09.3]} 39. Kd6 {[%clk 0:00:30.9]} 39... Rh3 {[%clk 0:00:07.9]} 40. Bf5
{[%clk 0:00:30.2]} 40... Rg3 {[%clk 0:00:06]} 41. Rb8 {[%clk 0:00:29.8]} 41...
Nxc7 {[%clk 0:00:05.7]} 42. Kxc7 {[%clk 0:00:29.2]} 42... Rxb8 {[%clk
0:00:05.9]} 43. Kxb8 {[%clk 0:00:29.6]} 43... g6 {[%clk 0:00:06.4]} 44. Be4
{[%clk 0:00:29.4]} 44... Rg4 {[%clk 0:00:06.9]} 45. Bxf3 {[%clk 0:00:27.3]}
45... Rb4+ {[%clk 0:00:07.1]} 46. Kc7 {[%clk 0:00:28]} 46... Rxb3 {[%clk
0:00:08]} 47. Bd5 {[%clk 0:00:28.6]} 47... Rc3+ {[%clk 0:00:07.2]} 48. Kd6
{[%clk 0:00:28.4]} 48... h5 {[%clk 0:00:07.4]} 49. Rxf7 {[%clk 0:00:28.2]} 49...
Kh8 {[%clk 0:00:07.9]} 50. Ke5 {[%clk 0:00:27.5]} 50... Rc5 {[%clk 0:00:07]} 51.
Rd7 {[%clk 0:00:24.1]} 51... h4 {[%clk 0:00:06.7]} 52. Kf6 {[%clk 0:00:24.7]}
52... h3 {[%clk 0:00:05.8]} 53. Kxg6 {[%clk 0:00:24.8]} 1-0

[Event "Early-Titled-Tuesday-Blitz-August-29-2023"]
[Site "Chess.com"]
[Date "2023.08.29"]
[Round "8"]
[White "artin10862"]
[Black "Frolyanov_D"]
[Result "1/2-1/2"]
[WhiteElo "2817"]
[BlackElo "2628"]
[TimeControl "180+1"]
[EndTime "9:27:39 PDT"]
[Termination "Game drawn by repetition"]

1. e4 {[%clk 0:03:00.9]} 1... e5 {[%clk 0:02:58.5]} 2. Nf3 {[%clk 0:03:01.4]}
2... Nf6 {[%clk 0:02:58.5]} 3. Nc3 {[%clk 0:02:52.9]} 3... Nc6 {[%clk
0:02:58.3]} 4. a4 {[%clk 0:02:52.6]} 4... d5 {[%clk 0:02:52.4]} 5. exd5 {[%clk
0:02:51]} 5... Nxd5 {[%clk 0:02:53.3]} 6. Bb5 {[%clk 0:02:49.7]} 6... Nxc3
{[%clk 0:02:52.4]} 7. bxc3 {[%clk 0:02:50.6]} 7... Bd6 {[%clk 0:02:52]} 8. d4
{[%clk 0:02:50.3]} 8... exd4 {[%clk 0:02:52.3]} 9. O-O {[%clk 0:02:50.9]} 9...
O-O {[%clk 0:02:52.2]} 10. cxd4 {[%clk 0:02:51.4]} 10... Qf6 {[%clk 0:02:44.1]}
11. h3 {[%clk 0:02:47.4]} 11... h6 {[%clk 0:02:43.7]} 12. Rb1 {[%clk 0:02:42.4]}
12... Bf5 {[%clk 0:02:41.1]} 13. Bd3 {[%clk 0:02:37.7]} 13... Rab8 {[%clk
0:02:28]} 14. Rb5 {[%clk 0:02:31.9]} 14... Bxd3 {[%clk 0:02:19.5]} 15. Qxd3
{[%clk 0:02:32.8]} 15... a6 {[%clk 0:02:15]} 16. Rf5 {[%clk 0:02:17.2]} 16...
Nb4 {[%clk 0:02:00.4]} 17. Rxf6 {[%clk 0:02:05.1]} 17... Nxd3 {[%clk 0:02:00.2]}
18. Rxd6 {[%clk 0:02:03.4]} 18... Nxc1 {[%clk 0:02:00.2]} 19. Rd7 {[%clk
0:02:03.6]} 19... Ne2+ {[%clk 0:01:59.6]} 20. Kh2 {[%clk 0:02:03.8]} 20... Rfd8
{[%clk 0:01:50.6]} 21. Rxc7 {[%clk 0:01:43.4]} 21... Nxd4 {[%clk 0:01:50.1]} 22.
Ne5 {[%clk 0:01:43.3]} 22... Ne6 {[%clk 0:00:33]} 23. Rxf7 {[%clk 0:01:40.4]}
23... Rd5 {[%clk 0:00:32.1]} 24. f4 {[%clk 0:01:27.7]} 24... Nxf4 {[%clk
0:00:31.7]} 25. Re7 {[%clk 0:01:18.4]} 25... Rf8 {[%clk 0:00:26.2]} 26. Nd7
{[%clk 0:01:17.9]} 26... Rff5 {[%clk 0:00:19.7]} 27. g4 {[%clk 0:01:17]} 27...
Rd2+ {[%clk 0:00:17]} 28. Kh1 {[%clk 0:01:10.8]} 28... Rfd5 {[%clk 0:00:11.6]}
29. Nf6+ {[%clk 0:00:39.1]} 29... gxf6 {[%clk 0:00:10.8]} 30. Rxf4 {[%clk
0:00:38.6]} 30... Rxc2 {[%clk 0:00:11.4]} 31. Kg1 {[%clk 0:00:34.9]} 31... Rd1+
{[%clk 0:00:11]} 32. Rf1 {[%clk 0:00:35.2]} 32... Rxf1+ {[%clk 0:00:11.6]} 33.
Kxf1 {[%clk 0:00:36.1]} 33... Ra2 {[%clk 0:00:11.7]} 34. Rxb7 {[%clk 0:00:27.5]}
34... Rxa4 {[%clk 0:00:11.7]} 35. Ke2 {[%clk 0:00:25.3]} 35... Ra3 {[%clk
0:00:11.8]} 36. h4 {[%clk 0:00:18.1]} 36... a5 {[%clk 0:00:12.1]} 37. h5 {[%clk
0:00:13.1]} 37... Rg3 {[%clk 0:00:10.8]} 38. Ra7 {[%clk 0:00:08.8]} 38... Rxg4
{[%clk 0:00:10.4]} 39. Rxa5 {[%clk 0:00:09.5]} 39... Rg5 {[%clk 0:00:10.7]} 40.
Ra7 {[%clk 0:00:07.3]} 40... Rxh5 {[%clk 0:00:10.4]} 41. Kf3 {[%clk 0:00:08]}
41... Rg5 {[%clk 0:00:10.6]} 42. Kf4 {[%clk 0:00:07]} 42... Rg7 {[%clk
0:00:10.1]} 43. Ra8+ {[%clk 0:00:06.7]} 43... Kh7 {[%clk 0:00:08.9]} 44. Kf5
{[%clk 0:00:06.8]} 44... Rc7 {[%clk 0:00:07.5]} 45. Kxf6 {[%clk 0:00:06.2]}
45... Rc6+ {[%clk 0:00:07.8]} 46. Kf5 {[%clk 0:00:06.2]} 46... Rc5+ {[%clk
0:00:07.8]} 47. Kg4 {[%clk 0:00:05.5]} 47... Rc4+ {[%clk 0:00:07.9]} 48. Kh5
{[%clk 0:00:05.5]} 48... Rc5+ {[%clk 0:00:08.2]} 49. Kg4 {[%clk 0:00:06.1]}
49... Rc4+ {[%clk 0:00:08.4]} 50. Kh5 {[%clk 0:00:06.3]} 50... Rc5+ {[%clk
0:00:08.7]} 51. Kg4 {[%clk 0:00:06.8]} 1/2-1/2

[Event "Early-Titled-Tuesday-Blitz-August-29-2023"]
[Site "Chess.com"]
[Date "2023.08.29"]
[Round "8"]
[White "Rutricks"]
[Black "RobertoJBM"]
[Result "0-1"]
[WhiteElo "2626"]
[BlackElo "2828"]
[TimeControl "180+1"]
[EndTime "9:27:41 PDT"]
[Termination "RobertoJBM won by resignation"]

1. c4 {[%clk 0:03:00.9]} 1... c6 {[%clk 0:02:59.6]} 2. b3 {[%clk 0:03:00.5]}
2... d5 {[%clk 0:03:00.5]} 3. Bb2 {[%clk 0:03:01.2]} 3... Bg4 {[%clk 0:02:58.2]}
4. h3 {[%clk 0:03:01.3]} 4... Bh5 {[%clk 0:02:58]} 5. Nf3 {[%clk 0:03:00.5]}
5... e6 {[%clk 0:02:55.3]} 6. e3 {[%clk 0:03:00.9]} 6... Nd7 {[%clk 0:02:54.4]}
7. Be2 {[%clk 0:03:01.5]} 7... Ngf6 {[%clk 0:02:54.2]} 8. O-O {[%clk 0:03:02.2]}
8... Bd6 {[%clk 0:02:54.2]} 9. Nc3 {[%clk 0:03:02.8]} 9... Qe7 {[%clk 0:02:54]}
10. Rc1 {[%clk 0:03:03.3]} 10... Ba3 {[%clk 0:02:53.6]} 11. Qc2 {[%clk
0:02:59.6]} 11... O-O {[%clk 0:02:51.8]} 12. Rcd1 {[%clk 0:02:45.4]} 12... Rfe8
{[%clk 0:02:51]} 13. Ba1 {[%clk 0:02:45.3]} 13... a5 {[%clk 0:02:49.3]} 14. d4
{[%clk 0:02:43.4]} 14... Bg6 {[%clk 0:02:36]} 15. Bd3 {[%clk 0:02:41.2]} 15...
Bxd3 {[%clk 0:02:35.6]} 16. Qxd3 {[%clk 0:02:42.1]} 16... Rad8 {[%clk
0:02:31.8]} 17. c5 {[%clk 0:02:36.2]} 17... Bb4 {[%clk 0:02:20.9]} 18. Nb1
{[%clk 0:02:31.8]} 18... a4 {[%clk 0:02:21.3]} 19. bxa4 {[%clk 0:02:20.1]} 19...
Ba5 {[%clk 0:02:13.5]} 20. Qb3 {[%clk 0:02:20.5]} 20... Nf8 {[%clk 0:02:11.9]}
21. Bc3 {[%clk 0:01:59.2]} 21... Ra8 {[%clk 0:02:10.8]} 22. Bxa5 {[%clk
0:01:54]} 22... Rxa5 {[%clk 0:02:11.7]} 23. Nc3 {[%clk 0:01:54.6]} 23... Rea8
{[%clk 0:02:08]} 24. Rb1 {[%clk 0:01:54.8]} 24... R8a7 {[%clk 0:02:01.9]} 25.
Qc2 {[%clk 0:01:27.7]} 25... N6d7 {[%clk 0:01:53.5]} 26. Rb4 {[%clk 0:01:24.1]}
26... e5 {[%clk 0:01:50.6]} 27. Rfb1 {[%clk 0:01:24.3]} 27... e4 {[%clk
0:01:50.4]} 28. Nd2 {[%clk 0:01:23.3]} 28... Nf6 {[%clk 0:01:48.7]} 29. Nb3
{[%clk 0:01:18.3]} 29... R5a6 {[%clk 0:01:48.3]} 30. Rb6 {[%clk 0:01:19]} 30...
N6d7 {[%clk 0:01:42.1]} 31. a5 {[%clk 0:01:10.6]} 31... Nxb6 {[%clk 0:01:37.2]}
32. cxb6 {[%clk 0:01:02.7]} 32... Ra8 {[%clk 0:01:36.8]} 33. Na4 {[%clk
0:01:02.7]} 33... Rxa5 {[%clk 0:01:27.7]} 34. Nxa5 {[%clk 0:01:02.8]} 34... Rxa5
{[%clk 0:01:28.6]} 35. Nc5 {[%clk 0:01:03.5]} 35... Ne6 {[%clk 0:01:24.7]} 36.
Qc3 {[%clk 0:00:35.6]} 36... Rxa2 {[%clk 0:00:45.2]} 37. Ra1 {[%clk 0:00:36]}
37... Rxa1+ {[%clk 0:00:45.6]} 38. Qxa1 {[%clk 0:00:36.9]} 38... Nxc5 {[%clk
0:00:45.8]} 39. dxc5 {[%clk 0:00:37.8]} 39... Qe8 {[%clk 0:00:37.2]} 40. Qa7
{[%clk 0:00:33.1]} 40... Qc8 {[%clk 0:00:36.9]} 41. Qa1 {[%clk 0:00:33.9]} 41...
f6 {[%clk 0:00:36.4]} 42. g4 {[%clk 0:00:31.6]} 42... Kf7 {[%clk 0:00:36.2]} 43.
g5 {[%clk 0:00:32.1]} 43... Qxh3 {[%clk 0:00:17.2]} 44. gxf6 {[%clk 0:00:31.2]}
44... gxf6 {[%clk 0:00:17.7]} 45. Qa8 {[%clk 0:00:31.3]} 45... Qd7 {[%clk
0:00:17.1]} 46. Qh8 {[%clk 0:00:30.1]} 46... Ke6 {[%clk 0:00:16.9]} 47. Qg8+
{[%clk 0:00:28.4]} 47... Kf5 {[%clk 0:00:16.4]} 48. Qg3 {[%clk 0:00:28.3]} 48...
Qe7 {[%clk 0:00:15.8]} 49. Qc7 {[%clk 0:00:26.6]} 49... Ke6 {[%clk 0:00:14.9]}
50. Qc8+ {[%clk 0:00:26.7]} 50... Kf7 {[%clk 0:00:14.5]} 51. Qh8 {[%clk
0:00:26.9]} 51... Qf8 {[%clk 0:00:14.7]} 52. Qxh7+ {[%clk 0:00:22.8]} 52... Qg7+
{[%clk 0:00:15.2]} 53. Qxg7+ {[%clk 0:00:23.6]} 53... Kxg7 {[%clk 0:00:16.1]}
54. Kg2 {[%clk 0:00:24.4]} 54... Kg6 {[%clk 0:00:16.2]} 55. Kg3 {[%clk
0:00:24.8]} 55... Kf5 {[%clk 0:00:15.9]} 56. Kh4 {[%clk 0:00:21.9]} 56... Ke5
{[%clk 0:00:15.6]} 57. Kh5 {[%clk 0:00:22.1]} 57... d4 {[%clk 0:00:15.3]} 58.
exd4+ {[%clk 0:00:22.7]} 58... Kxd4 {[%clk 0:00:16.2]} 59. Kg6 {[%clk
0:00:23.4]} 59... Ke5 {[%clk 0:00:16.4]} 60. Kf7 {[%clk 0:00:23.6]} 60... f5
{[%clk 0:00:16.6]} 61. Ke7 {[%clk 0:00:22.7]} 61... f4 {[%clk 0:00:17.1]} 62.
Kd7 {[%clk 0:00:22.8]} 62... e3 {[%clk 0:00:17.8]} 63. Kc7 {[%clk 0:00:23.1]}
63... exf2 {[%clk 0:00:17.9]} 64. Kxb7 {[%clk 0:00:24]} 64... f1=Q {[%clk
0:00:18.6]} 65. Kc7 {[%clk 0:00:24.7]} 65... Qb5 {[%clk 0:00:18.1]} 66. b7
{[%clk 0:00:25.6]} 66... Qxc5 {[%clk 0:00:18.1]} 67. b8=Q {[%clk 0:00:25.9]}
67... Qd6+ {[%clk 0:00:18.7]} 68. Kc8 {[%clk 0:00:26.6]} 68... Qxb8+ {[%clk
0:00:18.9]} 69. Kxb8 {[%clk 0:00:27.5]} 0-1

[Event "Early-Titled-Tuesday-Blitz-August-29-2023"]
[Site "Chess.com"]
[Date "2023.08.29"]
[Round "8"]
[White "gueraumasague"]
[Black "vovachesss"]
[Result "1-0"]
[WhiteElo "2568"]
[BlackElo "2773"]
[TimeControl "180+1"]
[EndTime "9:27:43 PDT"]
[Termination "gueraumasague won on time"]

1. e4 {[%clk 0:03:00.9]} 1... c5 {[%clk 0:02:52.7]} 2. Nc3 {[%clk 0:03:01.8]}
2... Nc6 {[%clk 0:02:51.2]} 3. Bb5 {[%clk 0:03:02.4]} 3... Nd4 {[%clk
0:02:50.1]} 4. Nf3 {[%clk 0:03:02.5]} 4... a6 {[%clk 0:02:45]} 5. Bd3 {[%clk
0:03:02]} 5... e6 {[%clk 0:02:45.1]} 6. O-O {[%clk 0:03:01.1]} 6... Nc6 {[%clk
0:02:39.2]} 7. Re1 {[%clk 0:02:58.3]} 7... d6 {[%clk 0:02:34.9]} 8. Bf1 {[%clk
0:02:54.7]} 8... e5 {[%clk 0:02:14.6]} 9. Nd5 {[%clk 0:02:54.1]} 9... Nf6 {[%clk
0:02:12.7]} 10. c3 {[%clk 0:02:53.7]} 10... Be6 {[%clk 0:02:07.2]} 11. Nxf6+
{[%clk 0:02:11.6]} 11... Qxf6 {[%clk 0:02:06]} 12. d4 {[%clk 0:02:12.5]} 12...
cxd4 {[%clk 0:01:56.2]} 13. cxd4 {[%clk 0:02:01.2]} 13... Nxd4 {[%clk
0:01:37.2]} 14. Nxd4 {[%clk 0:01:46.7]} 14... exd4 {[%clk 0:01:38.1]} 15. Qa4+
{[%clk 0:01:37.3]} 15... Bd7 {[%clk 0:01:38.3]} 16. Qb3 {[%clk 0:01:37.3]} 16...
Bc6 {[%clk 0:01:34.5]} 17. Qg3 {[%clk 0:01:04]} 17... Be7 {[%clk 0:01:08.7]} 18.
e5 {[%clk 0:01:02.5]} 18... dxe5 {[%clk 0:01:09.6]} 19. Rxe5 {[%clk 0:01:02.8]}
19... h6 {[%clk 0:01:10.3]} 20. Rh5 {[%clk 0:00:34.9]} 20... O-O-O {[%clk
0:00:43.6]} 21. Bf4 {[%clk 0:00:30.1]} 21... Bd6 {[%clk 0:00:41.2]} 22. Qh3+
{[%clk 0:00:20.6]} 22... Kb8 {[%clk 0:00:38.1]} 23. Bg5 {[%clk 0:00:19.6]} 23...
Qg6 {[%clk 0:00:06.7]} 24. Bxd8 {[%clk 0:00:18.8]} 24... Rxd8 {[%clk 0:00:07.6]}
25. Rd1 {[%clk 0:00:17.7]} 25... Qf6 {[%clk 0:00:05.7]} 26. Rf5 {[%clk
0:00:17.4]} 26... Bd7 {[%clk 0:00:04.6]} 27. Rxf6 {[%clk 0:00:16.5]} 27... Bxh3
{[%clk 0:00:05.5]} 28. Rxf7 {[%clk 0:00:16.4]} 28... Be6 {[%clk 0:00:03.7]} 29.
Rxg7 {[%clk 0:00:14.5]} 29... Bc5 {[%clk 0:00:04]} 30. b3 {[%clk 0:00:09.1]}
30... Bf5 {[%clk 0:00:02.7]} 31. Bd3 {[%clk 0:00:09]} 31... Be6 {[%clk
0:00:02.1]} 32. g3 {[%clk 0:00:08.6]} 32... Bb4 {[%clk 0:00:02.2]} 33. Rg6
{[%clk 0:00:07.9]} 33... Bd5 {[%clk 0:00:02.2]} 34. Rxh6 {[%clk 0:00:07.3]}
34... Bf3 {[%clk 0:00:02.9]} 35. Rb1 {[%clk 0:00:06.2]} 35... Rc8 {[%clk
0:00:02.8]} 36. Rf6 {[%clk 0:00:06.4]} 36... Bd5 {[%clk 0:00:02.7]} 37. Rf5
{[%clk 0:00:05.9]} 37... Be6 {[%clk 0:00:02.4]} 38. Rf4 {[%clk 0:00:05.8]} 38...
Rc3 {[%clk 0:00:02.1]} 39. Rd1 {[%clk 0:00:03.4]} 39... Bd5 {[%clk 0:00:01.8]}
40. Rxd4 {[%clk 0:00:03.1]} 40... Bc6 {[%clk 0:00:02.7]} 41. Rf4 {[%clk
0:00:02.6]} 41... Bc5 {[%clk 0:00:02.9]} 42. Be4 {[%clk 0:00:02.8]} 42... Bb5
{[%clk 0:00:02.6]} 43. Kg2 {[%clk 0:00:01.9]} 43... a5 {[%clk 0:00:02.9]} 44. a4
{[%clk 0:00:01.9]} 44... Ba6 {[%clk 0:00:02.8]} 45. Rf5 {[%clk 0:00:02.1]} 45...
Bb6 {[%clk 0:00:02]} 46. h4 {[%clk 0:00:02.7]} 46... Ka7 {[%clk 0:00:02.9]} 47.
h5 {[%clk 0:00:03.1]} 47... Be2 {[%clk 0:00:03.6]} 48. Rd2 {[%clk 0:00:02.2]}
48... Ba6 {[%clk 0:00:02.7]} 49. h6 {[%clk 0:00:02.1]} 49... Rc1 {[%clk
0:00:03.6]} 50. Rh5 {[%clk 0:00:02]} 50... Bf1+ {[%clk 0:00:04.5]} 51. Kh2
{[%clk 0:00:01.4]} 1-0